bitfinex/quotes_BTCUSD_20251007
["timestamp","ask_amount","ask_price","bid_price","bid_amount"]
[1759847414776,0.27610063,122830.0,122820.0,0.01074079]
[1759847414977,0.98474162,122830.0,122820.0,0.09880001]
[1759847415208,0.98674162,122830.0,122820.0,1e-08]
[1759847415645,0.30910063,122830.0,122820.0,1e-08]
[1759847415828,0.98674162,122830.0,122820.0,1e-08]
[1759847416032,1.40473842,122830.0,122820.0,1e-08]
[1759847416240,1.50473842,122830.0,122820.0,1e-08]
[1759847416445,0.32994553,122830.0,122820.0,1e-08]
[1759847416691,0.32994553,122830.0,122820.0,0.01732001]
[1759847416692,0.24594873,122830.0,122820.0,0.01732001]
[1759847417162,0.25294873,122830.0,122820.0,1e-08]
[1759847417627,0.97874162,122830.0,122820.0,1e-08]
[1759847417835,0.30110063,122830.0,122820.0,1e-08]
[1759847418047,0.98474162,122830.0,122820.0,1e-08]
[1759847418264,1.40473842,122830.0,122820.0,1e-08]
[1759847418525,1.50473842,122830.0,122820.0,1e-08]
[1759847418729,0.83109743,122830.0,122820.0,0.00101214]
[1759847418931,0.72709743,122830.0,122820.0,0.00101214]
[1759847419139,1.50473842,122830.0,122820.0,0.00101214]
[1759847419350,1.50473842,122830.0,122820.0,1e-08]
[1759847419560,1.50473842,122830.0,122810.0,0.0002]
[1759847419561,0.16285318,122810.0,122800.0,0.00407165]
[1759847419775,0.60827863,122810.0,122800.0,0.00407165]
[1759847420412,0.60827863,122810.0,122800.0,0.00447665]
[1759847420588,0.61658863,122810.0,122800.0,0.00447665]
[1759847420792,0.29843053,122810.0,122800.0,0.00447665]
[1759847421224,0.29843053,122810.0,122800.0,0.22003665]
[1759847421430,0.26827863,122810.0,122800.0,0.00447665]
[1759847421807,0.27527863,122810.0,122800.0,0.30691665]
[1759847422030,0.27527863,122810.0,122800.0,0.00447665]
[1759847422229,0.25347812,122810.0,122800.0,0.32299665]
[1759847422452,0.25347812,122810.0,122800.0,0.31207665]
[1759847422644,0.25347812,122810.0,122800.0,0.32978665]
[1759847422768,0.25347812,122810.0,122800.0,0.32499665]
[1759847422968,0.28810992,122810.0,122800.0,0.32499665]
[1759847423173,0.29310992,122810.0,122800.0,0.32299665]
[1759847423393,0.25147812,122810.0,122800.0,0.34070665]
[1759847423628,0.25147812,122810.0,122800.0,0.32299665]
[1759847423836,0.24647812,122810.0,122800.0,0.32299665]
[1759847424042,0.24647812,122810.0,122800.0,0.00447665]
[1759847424240,0.25047812,122810.0,122800.0,0.32299665]
[1759847424493,0.25047812,122810.0,122800.0,0.00447665]
[1759847424687,0.27880175,122810.0,122800.0,0.14691665]
[1759847424903,0.25047812,122810.0,122800.0,0.46863665]
[1759847425291,0.16735606,122810.0,122800.0,0.46863665]
[1759847425498,0.00450288,122810.0,122800.0,0.62950309]
[1759847425709,0.00450288,122810.0,122800.0,1.04874135]
[1759847425913,0.00450288,122810.0,122800.0,1.38938135]
[1759847426144,0.00450288,122810.0,122800.0,1.38738135]
[1759847426565,0.00450288,122810.0,122800.0,2.76349641]
[1759847426566,0.00050288,122810.0,122800.0,2.76349641]
[1759847426771,0.00050288,122810.0,122800.0,1.04938341]
[1759847426978,0.00150288,122810.0,122800.0,0.98949715]
[1759847427187,0.00150288,122810.0,122800.0,1.56205715]
[1759847427382,0.00150288,122810.0,122800.0,0.98949715]
[1759847427621,0.00150288,122810.0,122800.0,0.65498309]
[1759847427819,0.00150288,122810.0,122800.0,1.31214309]
[1759847428033,0.00150288,122810.0,122800.0,0.74127593]
[1759847428236,0.16435606,122810.0,122800.0,1.40639593]
[1759847428386,0.16435606,122810.0,122800.0,1.23523345]
[1759847428775,0.16435606,122810.0,122800.0,0.49811665]
[1759847428997,0.00150288,122810.0,122800.0,1.31806309]
[1759847429209,0.00150288,122810.0,122800.0,1.23350309]
[1759847429410,0.16435606,122810.0,122800.0,0.73063665]
[1759847429622,0.28019776,122810.0,122800.0,0.45393665]
[1759847429840,0.28019776,122810.0,122800.0,0.67155665]
[1759847430072,0.28019776,122810.0,122800.0,0.09907665]
[1759847430286,0.27919776,122810.0,122800.0,0.33127665]
[1759847430724,0.28019776,122810.0,122800.0,0.33327665]
[1759847430925,0.28019776,122810.0,122800.0,0.32527665]
[1759847431138,0.24747812,122810.0,122800.0,0.24067665]
[1759847431357,0.24647812,122810.0,122800.0,0.32427665]
[1759847431567,0.24647812,122810.0,122800.0,0.23867665]
[1759847431794,0.25147812,122810.0,122800.0,0.23967665]
[1759847432009,0.25547812,122810.0,122800.0,0.00547665]
[1759847432204,0.25547812,122810.0,122800.0,0.03687665]
[1759847432423,0.25547812,122810.0,122800.0,0.00547665]
[1759847432629,0.25547812,122810.0,122800.0,0.14115665]
[1759847432859,0.93311911,122810.0,122800.0,0.16343665]
[1759847433048,0.93311911,122810.0,122800.0,0.00447665]
[1759847433049,0.95827101,122810.0,122800.0,0.00447665]
[1759847433248,0.95827101,122810.0,122800.0,0.02315665]
[1759847433449,0.96327101,122810.0,122800.0,0.02315665]
[1759847433723,0.96327101,122810.0,122800.0,0.12119665]
[1759847433925,0.28563002,122810.0,122800.0,0.12119665]
[1759847434137,0.28563002,122810.0,122800.0,0.21087665]
[1759847434555,0.28563002,122810.0,122800.0,0.23859665]
[1759847434556,1.01414579,122810.0,122800.0,0.23859665]
[1759847434767,0.96327101,122810.0,122800.0,0.23859665]
[1759847435560,0.96327101,122810.0,122800.0,0.00447665]
[1759847435771,0.96327101,122810.0,122800.0,0.23859665]
[1759847435969,0.28563002,122810.0,122800.0,0.23859665]
[1759847436193,0.25547812,122810.0,122800.0,0.23859665]
[1759847437197,0.25547812,122810.0,122800.0,0.28476665]
[1759847437586,0.25547812,122810.0,122800.0,0.00447665]
[1759847437785,0.25547812,122810.0,122800.0,0.15163665]
[1759847438026,0.25547812,122810.0,122800.0,0.32315665]
[1759847438590,0.25547812,122810.0,122800.0,0.36983665]
[1759847438812,0.25547812,122810.0,122800.0,0.34084665]
[1759847439027,0.25547812,122810.0,122800.0,0.32315665]
[1759847441017,0.25547812,122810.0,122800.0,0.00447665]
[1759847441230,0.25547812,122810.0,122800.0,0.15335665]
[1759847441648,0.25547812,122810.0,122800.0,0.00447665]
[1759847441879,1.01311591,122810.0,122800.0,0.32311665]
[1759847442051,1.01311591,122810.0,122800.0,0.23847665]
[1759847442284,0.33547492,122810.0,122800.0,0.23847665]
[1759847442890,1.01311591,122810.0,122800.0,0.23847665]
[1759847443194,0.25547812,122810.0,122800.0,0.23847665]
[1759847443631,0.30547812,122810.0,122800.0,0.23847665]
[1759847444759,0.30547812,122810.0,122800.0,0.28515665]
[1759847444986,0.30547812,122810.0,122800.0,0.30149665]
[1759847445211,0.30547812,122810.0,122800.0,0.28515665]
[1759847445468,0.22235606,122810.0,122800.0,0.41728231]
[1759847446353,0.05950288,122810.0,122800.0,0.58014875]
[1759847446857,0.05950288,122810.0,122800.0,1.33478281]
[1759847447087,0.05450288,122810.0,122800.0,0.85479431]
[1759847447307,0.21735606,122810.0,122800.0,0.32343665]
[1759847447530,0.30347812,122810.0,122800.0,0.32343665]
[1759847447806,0.29947812,122810.0,122800.0,0.32343665]
[1759847448049,0.29647812,122810.0,122800.0,0.32343665]
[1759847448469,0.29947812,122810.0,122800.0,0.32343665]
[1759847448909,0.29947812,122810.0,122800.0,0.32643665]
[1759847449129,0.29947812,122810.0,122800.0,0.32343665]
[1759847449344,0.29947812,122810.0,122800.0,0.37011665]
[1759847449553,0.30247812,122810.0,122800.0,0.37011665]
[1759847449739,0.29947812,122810.0,122800.0,0.37011665]
[1759847449893,0.30447812,122810.0,122800.0,0.32443665]
[1759847450104,0.30447812,122810.0,122800.0,0.23971665]
[1759847450309,0.35121036,122810.0,122800.0,0.32435665]
[1759847450520,0.34621036,122810.0,122800.0,0.32335665]
[1759847450740,0.29647812,122810.0,122800.0,0.32335665]
[1759847450892,0.29947812,122810.0,122800.0,0.23971665]
[1759847451097,0.30047812,122810.0,122800.0,0.00547665]
[1759847451311,0.29647812,122810.0,122800.0,0.32335665]
[1759847451571,0.30147812,122810.0,122800.0,0.23971665]
[1759847451784,0.30447812,122810.0,122800.0,0.32435665]
[1759847453077,0.35121036,122810.0,122800.0,0.00547665]
[1759847453253,1.02885135,122810.0,122800.0,0.14495665]
[1759847453457,0.35121036,122810.0,122800.0,0.23963665]
[1759847454124,0.30447812,122810.0,122800.0,0.28631665]
[1759847454309,0.30447812,122810.0,122800.0,0.32001665]
[1759847454515,0.30447812,122810.0,122800.0,0.33673665]
[1759847454934,0.30447812,122810.0,122800.0,0.00547665]
[1759847455137,0.35121036,122810.0,122800.0,0.03435665]
[1759847455411,0.35121036,122810.0,122800.0,0.11899665]
[1759847455592,0.30447812,122810.0,122800.0,0.16567665]
[1759847456010,0.22135606,122810.0,122800.0,0.16567665]
[1759847456227,0.22135606,122810.0,122800.0,0.25675665]
[1759847457037,0.30447812,122810.0,122800.0,0.00547665]
[1759847457250,0.35121036,122810.0,122800.0,0.00547665]
[1759847457602,0.35121036,122810.0,122800.0,0.13471665]
[1759847457808,0.35121036,122810.0,122800.0,0.00547665]
[1759847458006,0.16287971,122790.0,122780.0,0.0002]
[1759847458217,0.24600177,122790.0,122780.0,0.0002]
[1759847458368,0.24600177,122790.0,122780.0,0.08484]
[1759847458571,0.24600177,122790.0,122780.0,0.10293511]
[1759847458784,0.24600177,122790.0,122780.0,0.08524511]
[1759847459233,0.24600177,122790.0,122780.0,0.32084511]
[1759847459606,0.24600177,122790.0,122780.0,0.33784511]
[1759847459801,0.24600177,122790.0,122780.0,0.42296511]
[1759847460006,0.24600177,122790.0,122780.0,0.53283462]
[1759847460209,0.16487971,122790.0,122780.0,0.53283462]
[1759847460610,0.002,122790.0,122780.0,0.53283462]
[1759847460825,0.16487971,122790.0,122780.0,0.53283462]
[1759847461038,0.16487971,122790.0,122780.0,0.87139462]
[1759847461457,0.002,122790.0,122780.0,0.87139462]
[1759847461674,0.16487971,122790.0,122780.0,0.87139462]
[1759847461891,0.16487971,122790.0,122780.0,0.21359462]
[1759847462048,0.16487971,122790.0,122780.0,0.13743511]
[1759847462264,0.16487971,122790.0,122780.0,0.74469511]
[1759847462478,0.16487971,122790.0,122780.0,0.09665511]
[1759847462723,0.24800177,122790.0,122780.0,0.00160511]
[1759847462936,0.24800177,122790.0,122780.0,0.33788511]
[1759847463162,0.24800177,122790.0,122780.0,0.36487511]
[1759847463600,0.24800177,122790.0,122780.0,0.38222511]
[1759847463805,0.24800177,122790.0,122780.0,0.33788511]
[1759847464035,0.24800177,122790.0,122780.0,0.36487511]
[1759847464260,0.24800177,122790.0,122780.0,0.33788511]
[1759847464473,0.24800177,122790.0,122780.0,0.41593511]
[1759847464679,0.24800177,122790.0,122780.0,0.38155511]
[1759847465348,0.24800177,122790.0,122780.0,0.39890511]
[1759847465576,0.16487971,122790.0,122780.0,0.45671511]
[1759847468265,0.002,122790.0,122780.0,0.45671511]
[1759847468470,0.002,122790.0,122780.0,0.13743511]
[1759847468671,0.16487971,122790.0,122780.0,0.79507511]
[1759847468830,0.002,122790.0,122780.0,1.03796488]
[1759847469030,0.16487971,122790.0,122780.0,0.21743191]
[1759847469246,0.16487971,122790.0,122780.0,0.75425511]
[1759847469692,0.002,122790.0,122780.0,0.25954808]
[1759847469899,0.16487971,122790.0,122780.0,0.79499511]
[1759847470107,0.16487971,122790.0,122780.0,0.87499191]
[1759847470314,0.16487971,122790.0,122780.0,1.03788488]
[1759847470774,0.16487971,122790.0,122780.0,0.87499191]
[1759847470978,0.16487971,122790.0,122780.0,0.21743191]
[1759847471191,0.16487971,122790.0,122780.0,0.07930511]
[1759847471462,0.24800177,122790.0,122780.0,0.10324511]
[1759847471699,0.24800177,122790.0,122780.0,0.36451511]
[1759847472454,0.24800177,122790.0,122780.0,0.00160511]
[1759847472654,0.24800177,122790.0,122780.0,0.32056511]
[1759847472868,0.24800177,122790.0,122780.0,0.00160511]
[1759847472869,0.28908885,122790.0,122780.0,0.00160511]
[1759847473314,0.28708885,122790.0,122780.0,0.00160511]
[1759847473554,0.28708885,122790.0,122780.0,0.13444511]
[1759847473765,0.28708885,122790.0,122780.0,0.00060511]
[1759847473766,0.29308885,122790.0,122780.0,0.00060511]
[1759847473978,1.22190865,122790.0,122780.0,0.00060511]
[1759847474188,1.25206055,122790.0,122780.0,1e-08]
[1759847474417,0.19304487,122780.0,122770.0,7e-05]
[1759847474652,1.28804715,122780.0,122770.0,7e-05]
[1759847474862,0.36422735,122780.0,122770.0,7e-05]
[1759847475058,1.28804715,122780.0,122770.0,7e-05]
[1759847475482,1.28804715,122780.0,122770.0,0.09219]
[1759847475711,0.28423055,122780.0,122770.0,0.09219]
[1759847475940,1.21705035,122780.0,122770.0,0.09219]
[1759847476151,0.25501503,122780.0,122770.0,0.09219]
[1759847476362,0.25501503,122780.0,122770.0,0.17047]
[1759847476632,1.17883483,122780.0,122770.0,0.23443]
[1759847476834,1.28898353,122780.0,122770.0,7e-05]
[1759847477039,1.29598353,122780.0,122770.0,0.23439]
[1759847477262,1.29504063,122780.0,122770.0,0.23439]
[1759847477474,1.34504063,122780.0,122770.0,0.23439]
[1759847477674,0.41922083,122780.0,122770.0,7e-05]
[1759847477878,1.34304063,122780.0,122770.0,0.23443]
[1759847478089,1.33804063,122780.0,122770.0,0.23443]
[1759847478333,1.33804063,122780.0,122770.0,7e-05]
[1759847478596,0.19307141,122760.0,122750.0,0.0002]
[1759847478811,1.08676586,122740.0,122730.0,0.20969707]
[1759847479016,1.16988792,122740.0,122730.0,0.20969707]
[1759847479427,0.24606812,122740.0,122730.0,0.34641707]
[1759847479668,0.27985863,122740.0,122730.0,0.34641707]
[1759847479892,1.23433259,122740.0,122730.0,0.11177707]
[1759847480092,0.31651279,122740.0,122730.0,0.34641707]
[1759847480476,0.25257038,122740.0,122730.0,0.34743031]
[1759847480657,0.25257038,122740.0,122730.0,0.36443031]
[1759847480865,0.25257038,122740.0,122730.0,0.39142031]
[1759847481065,0.16944832,122740.0,122730.0,0.48326031]
[1759847481323,0.16944832,122740.0,122730.0,0.44248031]
[1759847481488,0.16944832,122740.0,122730.0,0.50302542]
[1759847481687,0.00950226,122740.0,122730.0,0.70676476]
[1759847482033,0.17244832,122740.0,122730.0,0.48326031]
[1759847482218,0.16644832,122740.0,122730.0,0.48326031]
[1759847482629,0.16944832,122740.0,122730.0,0.48362031]
[1759847482831,0.16944832,122740.0,122730.0,0.86616031]
[1759847483218,0.16644832,122740.0,122730.0,0.90694031]
[1759847483423,0.16344832,122740.0,122730.0,0.90694031]
[1759847483639,0.16544832,122740.0,122730.0,0.90994031]
[1759847483994,0.16344832,122740.0,122730.0,0.90994031]
[1759847484519,0.16344832,122740.0,122730.0,0.25162031]
[1759847484705,0.16344832,122740.0,122730.0,0.57126031]
[1759847485351,0.16344832,122740.0,122730.0,0.53048031]
[1759847485493,0.16744832,122740.0,122730.0,0.15047031]
[1759847485875,0.16744832,122740.0,122730.0,0.49698031]
[1759847486096,0.16744832,122740.0,122730.0,0.53136031]
[1759847486318,0.25057038,122740.0,122730.0,0.43643031]
[1759847486737,0.25057038,122740.0,122730.0,0.46342031]
[1759847486945,0.00450226,122740.0,122730.0,0.73521965]
[1759847487369,0.00450226,122740.0,122730.0,1.61999571]
[1759847489260,0.00450226,122740.0,122730.0,1.65014761]
[1759847489468,0.06536749,122770.0,122730.0,1.73014441]
[1759847489676,0.22103761,122780.0,122760.0,0.50291951]
[1759847489885,0.22103761,122780.0,122770.0,1.2744202]
[1759847489886,0.05,122780.0,122770.0,1.2744202]
[1759847490097,0.05,122780.0,122770.0,1.46143728]
[1759847490730,0.05,122780.0,122770.0,1.18377914]
[1759847490933,0.05,122780.0,122770.0,1.43132538]
[1759847491151,0.05,122780.0,122770.0,1.4314759]
[1759847491564,0.05,122780.0,122770.0,1.4394759]
[1759847492228,0.051,122780.0,122770.0,1.4404759]
[1759847493055,0.051,122780.0,122770.0,1.58114952]
[1759847495039,0.051,122780.0,122770.0,1.60614952]
[1759847495250,0.00054459,122790.0,122780.0,0.16289297]
[1759847495453,0.00054459,122790.0,122780.0,5.74947183]
[1759847495663,0.00054459,122790.0,122780.0,2.73822383]
[1759847495877,0.00054459,122790.0,122780.0,1.49374083]
[1759847496103,0.00054459,122790.0,122780.0,2.49042083]
[1759847496290,0.00054459,122790.0,122780.0,1.29676283]
[1759847496491,0.00054459,122790.0,122780.0,1.92917173]
[1759847496706,0.00154459,122790.0,122780.0,1.78238373]
[1759847496913,0.00254459,122790.0,122780.0,1.78238373]
[1759847497076,0.00254459,122790.0,122780.0,1.96058173]
[1759847497491,0.00254459,122790.0,122780.0,0.96386173]
[1759847497716,0.00254459,122790.0,122780.0,1.98558173]
[1759847498358,0.00254459,122790.0,122780.0,0.98886173]
[1759847498567,0.00254459,122790.0,122780.0,1.98550173]
[1759847499411,0.00254459,122790.0,122780.0,2.00078173]
[1759847499620,0.06536749,122830.0,122820.0,0.53299182]
[1759847499850,0.06536749,122830.0,122820.0,2.86858296]
[1759847500064,0.06536749,122850.0,122840.0,0.16281341]
[1759847500270,0.06536749,122850.0,122840.0,0.95087547]
[1759847500476,0.06658206,122850.0,122840.0,0.95087547]
[1759847500807,0.00136535,122850.0,122840.0,0.95087547]
[1759847501049,0.00136535,122850.0,122840.0,1.31987227]
[1759847501253,0.05136535,122850.0,122840.0,1.31987227]
[1759847501616,0.06136535,122850.0,122840.0,1.46100417]
[1759847501896,0.06136535,122850.0,122840.0,1.53077717]
[1759847502590,0.06336535,122850.0,122840.0,1.53177717]
[1759847503203,0.05336535,122850.0,122840.0,1.81360527]
[1759847503366,0.05336535,122850.0,122840.0,1.47508527]
[1759847503571,0.22316551,122850.0,122840.0,0.50969255]
[1759847503776,0.06036535,122850.0,122840.0,1.16765255]
[1759847504002,0.06036535,122850.0,122840.0,1.41358802]
[1759847505609,0.06036535,122850.0,122840.0,1.44373992]
[1759847505816,0.06036535,122850.0,122840.0,1.87896292]
[1759847505996,0.06036535,122850.0,122840.0,1.88291779]
[1759847506228,0.06036535,122850.0,122840.0,1.81227389]
[1759847506400,0.06036535,122850.0,122840.0,0.81591389]
[1759847506539,0.06036535,122850.0,122840.0,1.47375389]
[1759847510001,0.30628757,122850.0,122840.0,0.00923575]
[1759847510206,0.30628757,122850.0,122840.0,0.28768575]
[1759847510327,0.30628757,122850.0,122840.0,0.27945]
[1759847510525,0.30628757,122850.0,122840.0,0.25337]
[1759847510730,0.29928757,122850.0,122840.0,0.25337]
[1759847510929,0.29728757,122850.0,122840.0,0.25237]
[1759847511136,0.31028757,122850.0,122840.0,0.2366]
[1759847511344,0.31428757,122850.0,122840.0,0.2376]
[1759847511567,0.30128757,122850.0,122840.0,0.2376]
[1759847511772,0.30128757,122850.0,122840.0,0.23784]
[1759847512183,0.30128757,122850.0,122840.0,0.32244]
[1759847512397,1.2910516,122850.0,122840.0,0.32244]
[1759847512603,1.2910516,122850.0,122840.0,0.001]
[1759847512808,1.29907848,122850.0,122840.0,0.23776]
[1759847513016,0.37525868,122850.0,122840.0,0.23776]
[1759847513219,1.29907848,122850.0,122840.0,0.23776]
[1759847513404,0.16283992,122820.0,122810.0,0.00818171]
[1759847513612,0.24596198,122820.0,122810.0,0.32958171]
[1759847513760,0.24596198,122820.0,122810.0,0.34284317]
[1759847513967,0.24596198,122820.0,122810.0,0.33717]
[1759847514412,0.16283992,122820.0,122810.0,0.34748]
[1759847514587,0.16283992,122820.0,122810.0,0.45286]
[1759847514999,0.16983992,122820.0,122810.0,0.45286]
[1759847515395,0.17383992,122820.0,122810.0,0.45386]
[1759847515597,0.011,122820.0,122810.0,0.61671318]
[1759847515800,0.17383992,122820.0,122810.0,0.61671318]
[1759847516390,0.17383992,122820.0,122810.0,0.45386]
[1759847516830,0.22383992,122820.0,122810.0,0.45386]
[1759847517620,0.061,122820.0,122810.0,0.45386]
[1759847517793,0.22383992,122820.0,122810.0,0.61671318]
[1759847517999,0.22383992,122820.0,122810.0,0.45386]
[1759847518890,0.22444736,122820.0,122810.0,0.45386]
[1759847519269,0.06160744,122820.0,122810.0,0.61671318]
[1759847519475,0.06160744,122820.0,122810.0,0.69983524]
[1759847519678,0.06160744,122820.0,122810.0,1.03983524]
[1759847519899,0.06160744,122820.0,122810.0,1.06998714]
[1759847520332,0.05460744,122820.0,122810.0,0.71843524]
[1759847520475,0.05460744,122820.0,122810.0,0.87522206]
[1759847520675,0.05060744,122820.0,122810.0,1.04207524]
[1759847520891,0.05060744,122820.0,122810.0,1.03707524]
[1759847521103,0.05360744,122820.0,122810.0,1.03807524]
[1759847521325,0.05360744,122820.0,122810.0,1.04507524]
[1759847521527,0.05060744,122820.0,122810.0,1.04407524]
[1759847521770,0.05060744,122820.0,122810.0,1.38407524]
[1759847521974,0.05260744,122820.0,122810.0,1.38507524]
[1759847522770,0.05260744,122820.0,122810.0,2.82814114]
[1759847522969,0.05260744,122820.0,122810.0,2.08127714]
[1759847523169,0.05260744,122820.0,122810.0,0.96911114]
[1759847523527,0.05260744,122820.0,122810.0,1.75354714]
[1759847523775,0.05260744,122820.0,122810.0,0.72543524]
[1759847523980,0.05260744,122820.0,122810.0,1.38495524]
[1759847527506,0.21544736,122820.0,122810.0,0.72543524]
[1759847527728,0.21544736,122820.0,122810.0,1.38479524]
[1759847527882,0.05260744,122820.0,122810.0,1.38479524]
[1759847528350,0.21544736,122820.0,122810.0,1.38479524]
[1759847528893,0.0521766,122820.0,122810.0,1.38479524]
[1759847529777,0.0521766,122820.0,122810.0,2.03669314]
[1759847530627,0.0521766,122820.0,122810.0,1.10431414]
[1759847530737,0.0521766,122820.0,122810.0,1.97970614]
[1759847531408,0.0521766,122820.0,122810.0,0.98210614]
[1759847531617,0.0521766,122820.0,122810.0,1.97970614]
[1759847532586,0.0521766,122820.0,122810.0,2.00470614]
[1759847533842,0.0501766,122820.0,122810.0,1.99670614]
[1759847534235,0.0511766,122820.0,122810.0,2.00270614]
[1759847534546,0.0511766,122820.0,122810.0,1.99870614]
[1759847534851,0.0501766,122820.0,122810.0,2.00470614]
[1759847535056,0.05015078,122850.0,122840.0,0.53296531]
[1759847535298,0.05015078,122850.0,122840.0,0.87708737]
[1759847535507,0.05015078,122850.0,122840.0,5.13108537]
[1759847535705,0.05015078,122850.0,122840.0,5.14682537]
[1759847535907,0.05015078,122850.0,122840.0,5.20795363]
[1759847536983,0.05115078,122850.0,122840.0,5.20995363]
[1759847537239,0.05615078,122850.0,122840.0,5.20995363]
[1759847537453,0.05615078,122850.0,122840.0,5.30995363]
[1759847537666,0.06536749,122880.0,122870.0,0.53292556]
[1759847537876,0.06587028,122880.0,122870.0,2.95020762]
[1759847538085,0.00050279,122880.0,122870.0,3.10400762]
[1759847538285,0.00050279,122880.0,122870.0,2.44512762]
[1759847538489,0.00050279,122880.0,122870.0,3.44236762]
[1759847538691,0.00050279,122880.0,122870.0,3.01936762]
[1759847538916,0.00050279,122880.0,122870.0,3.44236762]
[1759847539117,0.00050279,122880.0,122870.0,3.54236762]
[1759847539326,1e-08,122880.0,122870.0,3.54224762]
[1759847540160,0.00400001,122880.0,122870.0,3.12028762]
[1759847540380,0.00700001,122880.0,122870.0,2.54612762]
[1759847540582,0.00300001,122880.0,122870.0,3.54220762]
[1759847540709,1e-08,122880.0,122870.0,2.54512762]
[1759847541093,0.00221413,122880.0,122870.0,3.54816762]
[1759847541750,0.00221413,122880.0,122870.0,2.45112762]
[1759847541957,0.00221413,122880.0,122870.0,3.54808762]
[1759847542360,0.00221413,122880.0,122870.0,3.31232762]
[1759847542562,0.00221413,122880.0,122870.0,3.54800762]
[1759847542773,0.00221413,122880.0,122870.0,3.44796762]
[1759847542981,0.00221413,122880.0,122870.0,3.46332762]
[1759847543157,0.00221413,122880.0,122870.0,3.54788762]
[1759847543519,0.00221413,122880.0,122870.0,3.10268762]
[1759847543731,0.22631602,122900.0,122890.0,0.16274717]
[1759847543929,0.06551826,122900.0,122890.0,0.61026923]
[1759847544173,0.06551826,122900.0,122890.0,0.37466923]
[1759847544377,0.22825219,122900.0,122890.0,0.37466923]
[1759847544582,0.1628847,122900.0,122890.0,1.03310923]
[1759847545177,0.1648847,122900.0,122890.0,1.03310923]
[1759847545369,0.00215077,122900.0,122890.0,1.03310923]
[1759847545575,0.00215077,122900.0,122890.0,2.13671723]
[1759847545756,0.00215077,122900.0,122890.0,1.84691823]
[1759847545963,0.00215077,122900.0,122890.0,1.85516141]
[1759847546392,0.00315077,122900.0,122890.0,1.85616141]
[1759847549103,0.05315077,122900.0,122890.0,2.32631331]
[1759847549501,0.05315077,122900.0,122890.0,2.22631331]
[1759847549717,0.05355532,122900.0,122890.0,2.22631331]
[1759847550395,0.05355532,122900.0,122890.0,2.6267286]
[1759847553728,0.05355532,122900.0,122890.0,2.6264086]
[1759847555672,0.05355532,122900.0,122890.0,2.6514086]
[1759847555939,0.0004,122920.0,122910.0,0.53287258]
[1759847556190,0.0004,122920.0,122910.0,5.85107464]
[1759847556392,0.0004,122920.0,122910.0,5.98406464]
[1759847556621,0.0004,122920.0,122910.0,6.08406464]
[1759847557041,0.0004,122920.0,122910.0,5.11511364]
[1759847557254,0.0064,122920.0,122910.0,4.00903443]
[1759847557592,0.0084,122920.0,122910.0,4.01003443]
[1759847558009,0.0084,122920.0,122910.0,4.67083443]
[1759847558228,0.0084,122920.0,122910.0,4.77083443]
[1759847558402,0.0084,122920.0,122910.0,4.67083443]
[1759847558622,0.0084,122920.0,122910.0,4.77083443]
[1759847559044,0.0084,122920.0,122910.0,4.79583443]
[1759847559221,0.0004,122940.0,122930.0,0.19284611]
[1759847559459,0.00055072,122940.0,122930.0,4.25257817]
[1759847559658,0.00055072,122940.0,122930.0,1.83856517]
[1759847559867,0.00055072,122940.0,122930.0,1.61036817]
[1759847560074,0.00055072,122940.0,122930.0,0.61460817]
[1759847560317,0.00055072,122940.0,122930.0,1.61032817]
[1759847560503,0.00455072,122940.0,122930.0,0.58707627]
[1759847560745,0.00455072,122940.0,122930.0,1.03684627]
[1759847561151,0.00455072,122940.0,122930.0,0.37928627]
[1759847561748,0.00455072,122940.0,122930.0,1.03680627]
[1759847562175,0.00535948,122940.0,122930.0,1.03680627]
[1759847562399,0.00535948,122940.0,122930.0,0.37928627]
[1759847562711,0.16804046,122940.0,122930.0,0.55611]
[1759847562903,0.16804046,122940.0,122930.0,0.09178]
[1759847563112,0.92913095,122940.0,122930.0,0.44014]
[1759847563314,0.92913095,122940.0,122930.0,0.6584]
[1759847563753,0.24716252,122940.0,122930.0,0.6574]
[1759847563955,0.24716252,122940.0,122930.0,0.6584]
[1759847564290,0.24716252,122940.0,122930.0,0.6604]
[1759847564534,0.24716252,122940.0,122930.0,0.6749]
[1759847564741,0.24716252,122940.0,122930.0,0.7002]
[1759847565315,0.24716252,122940.0,122930.0,0.6992]
[1759847565737,0.25216252,122940.0,122930.0,0.7002]
[1759847566044,0.25216252,122940.0,122930.0,0.74918]
[1759847566379,0.25216252,122940.0,122930.0,0.73302]
[1759847566617,1.01012775,122940.0,122930.0,0.08552]
[1759847566831,1.01012775,122940.0,122930.0,0.001]
[1759847567010,1.01012775,122940.0,122930.0,0.32016]
[1759847567217,1.04027965,122940.0,122930.0,0.001]
[1759847567422,0.36231122,122940.0,122930.0,0.23564]
[1759847567624,1.04027965,122940.0,122930.0,0.23564]
[1759847567856,0.16269421,122930.0,122920.0,0.08452]
[1759847568061,0.16273393,122900.0,122890.0,0.39554721]
[1759847568190,0.16273393,122900.0,122890.0,0.50536721]
[1759847568604,0.16273393,122900.0,122890.0,0.42084721]
[1759847568811,0.16273393,122900.0,122890.0,0.01704403]
[1759847568812,0.24585599,122900.0,122890.0,0.01704403]
[1759847569012,0.24485599,122900.0,122890.0,0.00054403]
[1759847569256,0.24485599,122900.0,122890.0,0.23898403]
[1759847569462,0.24485599,122900.0,122890.0,0.33668743]
[1759847569863,0.24685599,122900.0,122890.0,0.33468743]
[1759847570306,0.24685599,122900.0,122890.0,0.33568743]
[1759847570518,0.24485599,122900.0,122890.0,0.25664403]
[1759847570689,0.24485599,122900.0,122890.0,0.27280403]
[1759847571530,0.24485599,122900.0,122890.0,0.09232403]
[1759847571710,0.24485599,122900.0,122890.0,0.41140403]
[1759847571911,0.24785599,122900.0,122890.0,0.41240403]
[1759847573176,0.24785599,122900.0,122890.0,0.37936403]
[1759847573323,0.24785599,122900.0,122890.0,0.34644115]
[1759847573520,0.24785599,122900.0,122890.0,0.37174115]
[1759847575202,0.16573393,122900.0,122890.0,0.62515832]
[1759847575403,0.16573393,122900.0,122890.0,0.46241115]
[1759847575606,0.16573393,122900.0,122890.0,0.80049115]
[1759847575810,0.16603683,122900.0,122890.0,0.96323832]
[1759847576023,0.16603683,122900.0,122890.0,0.80049115]
[1759847576440,0.16603683,122900.0,122890.0,0.14333115]
[1759847576781,0.16603683,122900.0,122890.0,0.96327832]
[1759847577935,0.16603683,122900.0,122890.0,0.80053115]
[1759847578628,0.16603683,122900.0,122890.0,0.96327832]
[1759847578834,0.0033029,122900.0,122890.0,0.96327832]
[1759847579443,0.16603683,122900.0,122890.0,0.96327832]
[1759847579613,0.16603683,122900.0,122890.0,0.30607832]
[1759847579786,0.16603683,122900.0,122890.0,0.35296215]
[1759847579981,0.16603683,122900.0,122890.0,1.01004215]
[1759847580186,0.16603683,122900.0,122890.0,0.84729498]
[1759847580402,0.16603683,122900.0,122890.0,1.01004215]
[1759847580791,0.16603683,122900.0,122890.0,0.84729498]
[1759847581001,0.16603683,122900.0,122890.0,1.01004215]